Cogmind - Beta 13 @@@ ROGUE MODE // 2024.05.09 @ 17:30:13 Player: Kate+Gabe4evr Result: Destroyed by P-60 Hacker with Shock Rifle Performance ------------- Evolutions (3) 1500 Regions Visited (4) 800 Robots Destroyed (55) 275 Value Destroyed (2082) 2082 Prototype IDs (0) 0 Alien Tech Used (0) 0 Bonus (28) 28 TOTAL SCORE: 4685 Bonus ------- High Alert Combat Kills 28 Cogmind --------- Core Integrity 0/700 Matter 128/300 Energy 100/100 System Corruption 3% Temperature Cool (0) Movement Core (350) Ox6 Location -7/Factory Parts ------- > --- POWER (1) -------- (None) > --- PROPULSION (3) --- (None) > --- UTILITY (5) ------ Large Storage Unit Machine Analyzer Improved Target Analyzer > --- WEAPON (4) ------- (None) > --- INVENTORY (15) --- Light Ion Engine Improved Heat Sink Advanced Heat Sink Large Storage Unit Compact Matter Pod (150) Core Analyzer Hacking Suite Peak State ------------ > --- POWER ------------ Micro Fission Core > --- PROPULSION ------- Light Treads Light Treads Light Treads > --- UTILITY ---------- Advanced Heat Sink Large Storage Unit Machine Analyzer Improved Target Analyzer Insulated Plating > --- WEAPON ----------- Gauss Rifle Flak Gun Flak Gun Flak Gun > --- INVENTORY -------- Light Ion Engine Improved Ion Engine Light Treads Light Treads Light Treads Improved Heat Sink Advanced Heat Sink Large Storage Unit Compact Matter Pod Core Analyzer Hacking Suite [Rating: 44] Favorites ----------- Power Ion Engine Engine Ion Engine Power Core Micro Fission Core Propulsion Light Treads Treads Light Treads Utility Large Storage Unit Device Improved Heat Sink Storage Large Storage Unit Processor Machine Analyzer Protection Hardened Medium Armor Plating Weapon Heavy Assault Rifle Energy Gun Beam Rifle Ballistic Gun Heavy Assault Rifle Build | -11 -10 -9 -8 -7 ------- Run | Yrd Mat Mat Mat Fac Slots Evolved 6 | . . 2 2 2 Power . | . . . . . Propulsion 1 | . . . 1 . Utility 3 | . . 1 1 1 Weapon 2 | . . 1 . 1 Parts Attached 65 | 7 2 3 33 20 Power 11 | 2 . . 7 2 Engine 8 | 2 . . 5 1 Core 3 | . . . 2 1 Reactor . | . . . . . Propulsion 18 | 2 . . 11 5 Treads 18 | 2 . . 11 5 Leg . | . . . . . Wheel . | . . . . . Hover . | . . . . . Flight . | . . . . . Utility 16 | 1 2 1 7 5 Device 4 | . 1 . 2 1 Storage 2 | 1 1 . . . Processor 2 | . . 1 . 1 Hackware . | . . . . . Protection 8 | . . . 5 3 Artifact . | . . . . . Weapon 20 | 2 . 2 8 8 Energy Gun 4 | 1 . 1 2 . Energy Cannon . | . . . . . Ballistic Gun 16 | 1 . 1 6 8 Ballistic Cannon . | . . . . . Launcher . | . . . . . Special Weapon . | . . . . . Impact Weapon . | . . . . . Slashing Weapon . | . . . . . Piercing Weapon . | . . . . . Special Melee Weapon . | . . . . . Unidentified Prototypes . | . . . . . Parts Lost 26 | . . . 4 22 Power 3 | . . . 1 2 Propulsion 8 | . . . . 8 Utility 6 | . . . 2 4 Weapon 9 | . . . 1 8 Highest Loss Streak 17 | . . . 2 17 To Critical Strikes 2 | . . . . 2 Average Slot Usage (%) 94 | . 89 97 97 91 Engine 7 | . 14 11 6 4 Core 1 | . . . 1 2 Treads 23 | . 28 22 26 21 Device 9 | . 4 11 11 8 Storage 9 | . 14 11 9 7 Processor 9 | . . 11 9 10 Protection 4 | . . . 6 6 Energy Gun 11 | . 14 19 13 5 Ballistic Gun 15 | . 14 11 11 22 Naked Turns . | . . . . . Heaviest Build 49 | 13 33 34 39 49 Greatest Support 60 | 40 40 40 60 60 Greatest Overweight (x) 6 | . . . 1 6 Average Overweight (x) . | . . . . . Largest Inventory Capacity 15 | 8 15 15 15 15 Average Capacity 14 | 6 13 15 15 15 Most Carried 15 | 1 3 7 15 15 Average Carried 10 | . 2 5 12 13 Final Capacity 15 | 8 15 15 15 15 Final Carried 15 | 1 3 7 15 7 Class Distribution -------------------- 43% | Scavenger-Tank 21% | Scavenger-Skirmisher 18% | Mutant 13% | Scavenger-Gunner Dominant Class ---------------- Mutant | -10/Materials Scavenger-Skirmisher | -9/Materials Scavenger-Tank | -8/Materials Scavenger-Tank | -7/Factory Resources | -11 -10 -9 -8 -7 ----------- Run | Yrd Mat Mat Mat Fac Matter Collected 1652 | 190 99 55 648 660 Remotely 10 | . . . . 10 Salvage Created 2457 | . 148 362 923 1024 Parts 119 | . 10 15 42 52 Haulers Intercepted 1 | . . . . 1 Recyclers Shooed . | . . . . . Parts Field Recycled . | . . . . . Retrieved Matter . | . . . . . Parts Self-Destructed . | . . . . . Prevented . | . . . . . Kills | -11 -10 -9 -8 -7 ------- Run | Yrd Mat Mat Mat Fac Combat Hostiles Destroyed 43 | . 2 4 16 21 Melee 1 | . . . 1 . Guns 42 | . 2 4 15 21 Classes Destroyed 13 | . 3 2 3 5 Worker 4 | . . . . 4 Builder 1 | . . 1 . . Hauler 1 | . . . . 1 Recycler 5 | . 1 2 1 1 Mechanic 1 | . 1 . . . Swarmer 3 | . . . . 3 Grunt 20 | . 2 2 7 9 Brawler 1 | . . . 1 . Duelist 1 | . . . 1 . Sentry 8 | . . 2 6 . Specialist 2 | . . . . 2 Hunter 6 | . . . 1 5 Programmer 2 | . . . . 2 Best Kill Streak 8 | . 4 4 3 8 Combat Bots Only 6 | . 2 3 3 6 Max Kills in Single Turn 2 | . 1 1 1 2 Gunslinging . | . . . . . Exploded . | . . . . . Melee 1 | . . . 1 . Uniques/NPCs Destroyed . | . . . . . Combat | -11 -10 -9 -8 -7 -------- Run | Yrd Mat Mat Mat Fac Hostile Shots Fired 380 | . 16 10 107 247 Missed 104 | . 4 2 34 64 Damage Taken 4350 | . 165 98 1150 2937 Core 916 | . 68 12 136 700 Absorbed by Shields . | . . . . . Core Remaining (%) 86 | 100 72 97 75 . Volleys Fired 133 | . 11 9 54 59 Largest 4 | . 2 3 3 4 Hottest 140 | . 70 129 129 140 Shots Fired 405 | . 22 26 157 200 Gun 405 | . 22 26 157 200 Cannon . | . . . . . Launcher . | . . . . . Special . | . . . . . Kinetic 266 | . 11 9 70 176 Thermal 139 | . 11 17 87 24 Explosive . | . . . . . Electromagnetic . | . . . . . Robot Hit Streak 15 | . 3 13 15 13 Robot Miss Streak 11 | . 2 1 3 11 Penetration Max 1 | . . . . 1 Secondary Targets 6 | . . . 3 3 Max Gunslinging Chain 1 | . . . 1 1 Shots Hit Robots 283 | . 12 20 104 147 Core Hits 188 | . 11 10 41 126 Critical Kills 1 | . . . . 1 Critical Parts Destroyed 3 | . . . . 3 Critical Strikes 14 | . . 3 4 7 Burn 10 | . . 3 4 3 Destroy 4 | . . . . 4 Melee Attacks . | . . . . . Impact . | . . . . . Slashing . | . . . . . Piercing . | . . . . . Sneak Attacks . | . . . . . Combat Hostiles . | . . . . . Follow-up Attacks . | . . . . . Damage Inflicted 4503 | . 173 270 1520 2540 Guns 4428 | . 148 262 1496 2522 Cannons . | . . . . . Explosions . | . . . . . Melee . | . . . . . Ramming 75 | . 25 8 24 18 Kinetic 3013 | . 37 65 668 2243 Thermal 1415 | . 111 197 828 279 Explosive . | . . . . . Electromagnetic . | . . . . . Impact . | . . . . . Slashing . | . . . . . Piercing . | . . . . . Highest Corruption 2 | . . . . 2 Average Corruption 1 | . . . . 1 Corruption Purged . | . . . . . Corruption Blocked . | . . . . . Effects 1 | . . . . 1 Matter Fused 1 | . . . . 1 Overload Shots . | . . . . . Overflow Damage . | . . . . . Projectiles . | . . . . . Explosions . | . . . . . Melee . | . . . . . Knockbacks 2 | . 1 1 . . Impact 2 | . 1 1 . . Kinetic . | . . . . . Secondary . | . . . . . Self-Inflicted Damage 1 | . . . . 1 Shots . | . . . . . Rammed 20 | . 5 1 8 6 Targets Rammed 21 | . 5 2 8 6 Kicked . | . . . . . Crushed 1 | . . 1 . . Highest Temperature 375 | . 227 75 375 54 Average Temperature 93 | . 120 35 126 9 Received Heat Transfer 999 | . 93 39 576 291 Effects 2 | . . . 2 . Shutdowns 1 | . . . 1 . Interference 1 | . . . 1 . Siege Activations . | . . . . . Robots Corrupted . | . . . . . Combat Hostiles . | . . . . . Parts Fried . | . . . . . Impact Corruptions . | . . . . . Robots Melted . | . . . . . Combat Hostiles . | . . . . . Parts Melted 6 | . . 3 1 2 Heat Transferred 4551 | . 333 777 2553 888 Parts Sabotaged . | . . . . . Parts Stolen . | . . . . . Parts Stripped . | . . . . . Power Chain Reactions . | . . . . . Alert | -11 -10 -9 -8 -7 ------- Run | Yrd Mat Mat Mat Fac Peak Influence 410 | . 90 203 362 410 Initial 153 | . . 37 85 153 Average 169 | . 46 109 226 189 Maximum Alert Level 2 | . . 1 1 2 Low Security (%) 66 | 100 100 90 38 69 Level 1 32 | . . 9 61 28 Level 2 . | . . . . 1 Level 3 . | . . . . . Level 4 . | . . . . . Level 5 . | . . . . . High Security . | . . . . . Max Security . | . . . . . Squads Dispatched 5 | . . 2 2 1 Investigation 2 | . . 1 1 . Extermination 1 | . . . . 1 Reinforcement 1 | . . 1 . . Assault . | . . . . . Garrison 1 | . . . 1 . Intercept . | . . . . . Searches Triggered . | . . . . . Construction Impeded . | . . . . . Haulers Reinforced . | . . . . . Active Scanning Responses . | . . . . . Cargo Convoy Interrupts 1 | . . . . 1 Stealth | -11 -10 -9 -8 -7 --------- Run | Yrd Mat Mat Mat Fac Distress Signals 6 | . 2 3 1 . Communications Jammed . | . . . . . Distress Signals . | . . . . . Times Spotted 68 | . 6 7 20 35 Peak Tracking Total 11 | . 4 3 5 11 Tactical Retreats 6 | . 1 . 1 4 Traps | -11 -10 -9 -8 -7 ------- Run | Yrd Mat Mat Mat Fac Traps Triggered 8 | . . 1 7 . Indirectly . | . . . . . Trap Hack Attempts . | . . . . . Triggered . | . . . . . Disarmed . | . . . . . Reprogrammed . | . . . . . Reused . | . . . . . Traps Extracted . | . . . . . Installed . | . . . . . Triggered . | . . . . . Machines | -11 -10 -9 -8 -7 ---------- Run | Yrd Mat Mat Mat Fac Machines Disabled 1 | . . . . 1 Max in Single Turn 1 | . . . . 1 Machines Repaired . | . . . . . Machines Dismantled . | . . . . . Machines Sabotaged . | . . . . . Overloaded Fab Kills . | . . . . . Hacking | -11 -10 -9 -8 -7 --------- Run | Yrd Mat Mat Mat Fac Machines Accessed . | . . . . . Terminals . | . . . . . Fabricators . | . . . . . Repair Stations . | . . . . . Recycling Units . | . . . . . Scanalyzers . | . . . . . Garrison Access . | . . . . . Total Hacks . | . . . . . Successful . | . . . . . Failed . | . . . . . Catastrophic . | . . . . . Database Lockouts . | . . . . . Manual . | . . . . . Terminals . | . . . . . Fabricators . | . . . . . Repair Stations . | . . . . . Recycling Units . | . . . . . Scanalyzers . | . . . . . Garrison Access . | . . . . . Terminal Hacks . | . . . . . Fabricator Hacks . | . . . . . Repair Station Hacks . | . . . . . Recycling Unit Hacks . | . . . . . Scanalyzer . | . . . . . Garrison Access Hacks . | . . . . . Unauthorized Hacks . | . . . . . Terminals . | . . . . . Fabricators . | . . . . . Repair Stations . | . . . . . Recycling Units . | . . . . . Scanalyzers . | . . . . . Garrison Access . | . . . . . Data Cores Recovered . | . . . . . Used . | . . . . . Hacking Detections . | . . . . . Full Trace Events . | . . . . . Feedback Events . | . . . . . Feedback Blocked . | . . . . . Robot Schematics Acquired . | . . . . . Robots Built . | . . . . . Authchips . | . . . . . Time . | . . . . . Total Robot Build Rating . | . . . . . Part Schematics Acquired . | . . . . . Parts Built . | . . . . . Authchips . | . . . . . Time . | . . . . . Total Part Build Rating . | . . . . . Parts Repaired . | . . . . . Time . | . . . . . Parts Recycled . | . . . . . Recycled Matter . | . . . . . Retrieved Matter . | . . . . . Retrieved Components . | . . . . . Parts Scanalyzed . | . . . . . Part Schematics Acquired . | . . . . . Parts Damaged . | . . . . . Bothacking | -11 -10 -9 -8 -7 ------------ Run | Yrd Mat Mat Mat Fac Used RIF Installer . | . . . . . Robots Hacked . | . . . . . Non-combat . | . . . . . Combat . | . . . . . Robot Hacks Applied . | . . . . . Relay Couplers Released 3 | . . . . 3 Programmers 3 | . . . . 3 Fabnet Peak Effective % . | . . . . . Robots Rewired . | . . . . . Allies Hacked . | . . . . . Hacks Repelled . | . . . . . Allies | -11 -10 -9 -8 -7 -------- Run | Yrd Mat Mat Mat Fac Total Allies . | . . . . . Largest Group . | . . . . . Highest-Rated Group . | . . . . . Highest-Rated Ally . | . . . . . Total Orders . | . . . . . Ally Attacks . | . . . . . Total Damage . | . . . . . Kills . | . . . . . Allies Corrupted . | . . . . . Allies Melted . | . . . . . Intel | -11 -10 -9 -8 -7 ------- Run | Yrd Mat Mat Mat Fac Robot Analysis Total . | . . . . . Derelict Logs Recovered . | . . . . . Drone Launches . | . . . . . Drone Recoveries . | . . . . . Exploration | -11 -10 -9 -8 -7 ------------- Run | Yrd Mat Mat Mat Fac Turns Passed 2237 | 77 199 372 760 829 Spaces Moved 985 | 49 94 189 309 344 Core 13 | 10 . . . 3 Treads 972 | 39 94 189 309 341 Legs . | . . . . . Wheels . | . . . . . Hover . | . . . . . Flight . | . . . . . Fastest Speed 50 | 50 160 160 160 160 Average Speed 160 | 137 160 160 160 165 Slowest Speed 350 | 160 160 160 240 350 Overloaded Moves . | . . . . . Propulsion Burnouts . | . . . . . Robots Hopped . | . . . . . Cave-ins Triggered . | . . . . . Exploration Rate (%) 16 | 4 20 20 27 11 Regions Visited 4 Branch Regions . Pre-discovered Areas . | . . . . . Known Exits Taken . | . . . . . Unknown Exits Taken 4 | 1 1 1 1 . Scrap Searched . | . . . . . Spaces Dug . | . . . . . Terrain Destroyed 1 | . . . . 1 Melee . | . . . . . Projectile 1 | . . . . 1 AOE . | . . . . . Terrain Rammed . | . . . . . Walls Destroyed . | . . . . . Machines Disabled . | . . . . . Actions | -11 -10 -9 -8 -7 --------- Run | Yrd Mat Mat Mat Fac Total 1325 | 55 120 237 444 469 Wait 88 | . 5 31 24 28 Move 981 | 48 93 188 308 344 Hop . | . . . . . Pick Up 15 | . 2 4 5 4 Fast Attach 26 | 6 2 1 12 5 Attach 16 | . . 1 5 10 Detach 3 | . 1 . 2 . Swap 23 | 1 . 1 16 5 Drop 19 | . 1 . 10 8 Fire 133 | . 11 9 54 59 Melee . | . . . . . Ram 3 | . . . . 3 Kick . | . . . . . Crush 18 | . 5 2 8 3 Escape Stasis . | . . . . . Rewire . | . . . . . Trap . | . . . . . Miscellaneous . | . . . . . Route ------- -11/Scrapyard -10/Materials -9/Materials -8/Materials -7/Factory History --------- Turn | Location | Event 3 | -11/Scrapyard | Discovered new exit (range 15) 78 | -11/Scrapyard | Entered Materials 259 | -10/Materials | Discovered new exit (range 4) 277 | -10/Materials | Entered another Materials area 277 | -9/Materials | Evolved 2 slots: Utility x1, Weapon x1 317 | -9/Materials | Build established: Mutant 632 | -9/Materials | Discovered new exit (range 4) 649 | -9/Materials | Entered another Materials area 649 | -8/Materials | Evolved 2 slots: Propulsion x1, Utility x1 941 | -8/Materials | Build established: Scavenger-Tank 1344 | -8/Materials | Garrison activated, responded to threat 1367 | -8/Materials | Discovered new exit (range 16) 1409 | -8/Materials | Entered Factory 1409 | -7/Factory | Evolved 2 slots: Utility x1, Weapon x1 2136 | -7/Factory | Cargo convoy interrupted 2196 | -7/Factory | Core integrity fell below 50% 2231 | -7/Factory | Core integrity fell below 20% 2238 | -7/Factory | Destroyed by P-60 Hacker with Shock Rifle Last Messages --------------- 02209_ Penetrated by Slug. 02212_ Critical hit (Destroy). 02212_ Gauss Rifle destroyed. 02212_ Lgt. Treads destroyed. 02212_ H-55 Commando suffers critical hit (Destroy). 02212_ Destroyed Assault Rifle. 02212_ Penetrated by Slug. 02217_ H-55 Commando suffers critical hit (Destroy). 02217_ H-55 Commando destroyed. 02218_ Penetrated by Slug. 02218_ Autogun destroyed. 02219_ Slammed into H-55 Commando. 02221_ Slug penetrates Wall. 02222_ Wall collapses. 02224_ Penetrated by Slug. 02228_ K-01 Serf collects debris. 02230_ Penetrated by Slug. 02233_ Slammed into T-07 Excavator. 02235_ K-01 Serf collects debris. 02237_ Slammed into W-25 Informer. Map ----- +----------------------------------------------------+ | ?????????????????????????????????????????????????? | | ?????????????????????????????????????????????????? | | ?????????????????????????????????????????????????? | | ?????????????????????????????????????????????????? | | ?????????????????????????????????????????????????? | | ?????????????????????????????????????????????????? | | ?????????????????????????????????????????????????? | | ?????????????????????????????????????????????????? | | ?????????????????????????????????????????????????? | | ????????????????????????????""???????????????????? | | ????????????????????????????""???????????????????? | | ????????????????????????????"T???"""?????????????? | | ????????????????????????????""?? """?????????????? | | ????????????????????????????""?? """?????????????? | | ???????????????????????????????% ???????????????? | | ########???????################+###??????????????? | | #???????# % #??????????????? | | #???????# #??????????????? | | #???????# #??????????????? | | #???????# * m #??????????????? | | #???????# !%= h #??????????????? | | #???????# %!* #??????????????? | | #???????# !!=% #??????????????? | | #???????# ==!=== #??????????????? | | ##################;;########??????????????? | | ! # [ ## !!@k* #???????????????????? | | # ## [w= #???????????????????? | | # """"" ##=m #???????????????????? | | ###+#### """"" ## % p #???????????????????? | | + """ =! ## #???????????????????? | | # !%! ##% ! #???????????????????? | | + """"" + #???????????????????? | | # """"" ## t #???????????????????? | | # """ ! ## #???????????????????? | | ###/##+# ## k #???????????????????? | | # ## ^* ^ ^#???????????????????? | | # ##^ %=^ ^#???????????????????? | | ############### = #???????????????????? | | #?????????????# +???????????????????? | | #?????????????# k #???????????????????? | | #?????????????# #???????????????????? | | #?????????????# #???????????????????? | | #?????????????# #???????????????????? | | #????????????? ???????????????????? | | #????????????? ???????????????????? | | #????????????? ?????????????????????? | | #????????????? ???????????????????????? | | ########?????????????????????????????????????????? | | ?????????????????????????????????????????????????? | | ?????????????????????????????????????????????????? | +----------------------------------------------------+ Best States ------------- Heat Dissipation 64 Energy Generation 15 Energy Capacity 265 Matter Stores 300 Matter Capacity 300 Sight Range 16 Terrain Scan Density 10 Armor Coverage 225 Resistance: EM 15 Evasion (%) 40 Target Analysis 6 Recoil Reduction 3 Item Schematics ----------------- None Robot Schematics ------------------ None Fabricated ------------ Nothing Alien Tech Used ----------------- None Achievements -------------- None Challenges ------------ None Game ------ Seed LatentAssemblyInverter Manual? 0 Play Time 00:15:36 Cumulative 19.1 hours Start 2024.05.09 @ 17:14:18 End 2024.05.09 @ 17:30:13 Sessions 1 Manual Loads 0 Difficulty Rogue Special Mode None Game No. 33 Rogue 33 Adventurer 0 Explorer 0 Win Type - Total 0 Types 0/0/0/0/0/0/0/0/0 Lore% 17 Gallery% 31 Achievement% 29 Wizard Run 0 Options --------- Layout 0 ASCII 0 Keyboard 1 Movement Numpad Keybinds 0 Fullscreen 1 Font 24/X11 Map View 76x50 Zoom Use 0% Tactical HUD 1 Map Filters NONE Filters NONE Steam 1 RUN: 7932b514-d703-4977-9d2f-d8e890ad96a8